bitfinex/quotes_BTCUSD_20240727
["timestamp","ask_amount","ask_price","bid_price","bid_amount"]
[1722114124269,0.01031,67899.0,67886.0,0.235687]
[1722114124469,0.01031,67899.0,67876.0,0.45077872]
[1722114124470,0.01031,67899.0,67892.0,0.235667]
[1722114124675,0.01031,67899.0,67898.0,0.235647]
[1722114124874,0.01031,67899.0,67898.0,0.589117]
[1722114125074,0.01031,67899.0,67898.0,0.824764]
[1722114125571,0.01031,67899.0,67898.0,1.125111]
[1722114125768,0.01031,67899.0,67898.0,0.889464]
[1722114126011,0.01031,67899.0,67898.0,0.891464]
[1722114126214,0.01031,67899.0,67898.0,0.912464]
[1722114128109,0.01031,67899.0,67898.0,0.824764]
[1722114128493,0.01031,67899.0,67898.0,0.589117]
[1722114128825,0.01031,67899.0,67898.0,0.35347]
[1722114129216,0.01031,67899.0,67898.0,0.589117]
[1722114130026,0.01031,67899.0,67898.0,0.824764]
[1722114130340,0.01031,67899.0,67898.0,0.589117]
[1722114130762,0.01031,67899.0,67898.0,0.35347]
[1722114131166,0.01031,67899.0,67898.0,0.824764]
[1722114131368,0.01031,67899.0,67898.0,1.002664]
[1722114131622,0.01031,67899.0,67898.0,1.238311]
[1722114131827,0.01031,67899.0,67898.0,1.36074245]
[1722114132002,0.01031,67899.0,67898.0,1.59638945]
[1722114132211,0.00831,67916.0,67908.0,1.215154]
[1722114132457,0.00831,67916.0,67908.0,1.240154]
[1722114132658,0.00831,67916.0,67908.0,1.36056096]
[1722114132895,0.00831,67916.0,67908.0,1.238154]
[1722114133068,0.00831,67916.0,67908.0,1.36056109]
[1722114133305,0.00831,67916.0,67908.0,1.28291106]
[1722114133657,0.00831,67916.0,67908.0,1.002542]
[1722114134003,0.081,67939.0,67908.0,1.002542]
[1722114134004,0.002,67939.0,67919.0,0.1549]
[1722114134269,0.002,67939.0,67930.0,1.05440579]
[1722114134472,0.002,67939.0,67938.0,0.979178]
[1722114134659,0.002,67939.0,67938.0,1.237686]
[1722114134884,0.002,67939.0,67938.0,1.715794]
[1722114135090,0.002,67939.0,67938.0,1.60263414]
[1722114135091,1e-06,67939.0,67938.0,1.60263414]
[1722114135268,1e-06,67939.0,67938.0,1.53060822]
[1722114135419,1e-06,67939.0,67938.0,1.482286]
[1722114135619,1e-06,67944.0,67943.0,0.826218]
[1722114135822,1e-06,67944.0,67943.0,1.369129]
[1722114136049,1e-06,67944.0,67943.0,1.53537232]
[1722114136254,1e-06,67944.0,67943.0,1.02303069]
[1722114136466,1e-06,67944.0,67943.0,1.54892505]
[1722114136636,1e-06,67944.0,67943.0,1.50309022]
[1722114136845,1e-06,67944.0,67943.0,1.457209]
[1722114137038,1e-06,67944.0,67943.0,0.979118]
[1722114138031,1e-06,67944.0,67943.0,1.357209]
[1722114138239,0.0083,67956.0,67949.0,0.39037]
[1722114138437,0.0083,67956.0,67955.0,0.510073]
[1722114138683,0.0083,67956.0,67955.0,0.980971]
[1722114138891,0.0758,67988.0,67955.0,0.980971]
[1722114138892,0.030879,68001.0,67983.0,0.7]
[1722114139089,0.030879,68001.0,68000.0,0.564641]
[1722114139291,0.030879,68001.0,68000.0,0.86764759]
[1722114139491,0.030879,68001.0,68000.0,0.65535359]
[1722114139668,0.030879,68001.0,68000.0,0.04411859]
[1722114139864,0.030879,68001.0,68000.0,0.117647]
[1722114140180,0.030879,68001.0,67994.0,0.235313]
[1722114140357,0.030879,68001.0,67995.0,0.023]
[1722114140838,0.030879,68001.0,67974.0,0.066]
[1722114140839,0.030879,68001.0,68000.0,0.117647]
[1722114141042,0.030879,68001.0,67977.0,0.00714367]
[1722114141251,0.030879,68001.0,67989.0,0.235331]
[1722114141457,0.030879,68001.0,68000.0,0.352941]
[1722114141659,0.030879,68001.0,67986.0,0.07512979]
[1722114141660,0.030879,68001.0,67990.0,0.1549]
[1722114141920,0.030879,68001.0,68000.0,0.588235]
[1722114142124,0.030879,68001.0,68000.0,0.823529]
[1722114142326,0.030879,68001.0,67982.0,0.1]
[1722114142548,0.030879,68001.0,68000.0,0.117647]
[1722114142792,0.030879,68001.0,68000.0,0.375941]
[1722114143032,0.030879,68001.0,68000.0,0.611235]
[1722114143291,0.030879,68001.0,68000.0,0.846529]
[1722114144244,0.030879,68001.0,68000.0,1.067429]
[1722114144477,0.030879,68001.0,68000.0,1.404723]
[1722114144722,0.01533663,68035.0,68002.0,0.2209]
[1722114144945,0.01533663,68035.0,68028.0,1.355886]
[1722114145173,0.01533663,68035.0,68028.0,1.378886]
[1722114145406,0.00209,68039.0,68028.0,1.714083]
[1722114145668,0.00209,68039.0,68032.0,1.058323]
[1722114145901,0.00209,68039.0,68033.0,0.507668]
[1722114146104,0.00209,68039.0,68033.0,1.078026]
[1722114146311,0.00209,68039.0,68033.0,1.181305]
[1722114147298,0.00209,68039.0,68033.0,0.823126]
[1722114147500,0.00209,68039.0,68033.0,0.587947]
[1722114147916,0.00209,68039.0,67976.0,0.3]
[1722114147917,0.00209,68039.0,68027.0,0.1176]
[1722114148135,0.00209,68039.0,67997.0,0.45077872]
[1722114148136,0.07668399,68033.0,68006.0,0.066]
[1722114148342,0.07668399,68033.0,68016.0,0.45077872]
[1722114148566,0.07668399,68033.0,68003.0,0.0766]
[1722114148567,0.07512979,68026.0,68003.0,0.0766]
[1722114148828,0.0015542,68025.0,68003.0,0.0766]
[1722114149085,0.07512979,68019.0,68003.0,0.11764]
[1722114149278,0.07512979,68019.0,67992.0,0.0603]
[1722114149279,0.0015542,68018.0,67998.0,0.45077872]
[1722114149736,0.0015542,68023.0,67993.0,0.07512979]
[1722114149963,0.0015542,68023.0,68001.0,0.07512979]
[1722114150164,0.0015542,68033.0,68008.0,0.07512979]
[1722114150348,0.0015542,68033.0,68032.0,0.352774]
[1722114150535,0.00829,68034.0,68033.0,0.117589]
[1722114150760,0.00829,68034.0,68033.0,0.352768]
[1722114151082,0.00829,68034.0,68033.0,0.375768]
[1722114151329,0.00829,68034.0,68033.0,0.610947]
[1722114151581,0.00829,68034.0,68033.0,0.846126]
[1722114151808,0.00829,68034.0,68033.0,0.610947]
[1722114152262,0.00829,68034.0,68020.0,0.0603]
[1722114152522,0.0015542,68033.0,68021.0,0.023]
[1722114152736,0.0015542,68033.0,68032.0,0.587957]
[1722114152949,0.00829,68034.0,68033.0,0.587947]
[1722114153194,0.00829,68034.0,68033.0,1.081305]
[1722114153195,0.00329,68034.0,68033.0,1.081305]
[1722114153444,0.00329,68034.0,68033.0,1.416484]
[1722114153644,0.00329,68034.0,68033.0,1.241705]
[1722114153848,0.00329,68034.0,68033.0,0.846126]
[1722114154055,0.00329,68034.0,68033.0,0.587947]
[1722114154464,0.00329,68034.0,68033.0,0.117589]
[1722114154680,0.00329,68034.0,68033.0,0.368048]
[1722114154883,0.00329,68034.0,68033.0,0.132869]
[1722114155085,0.00329,68034.0,68017.0,0.1]
[1722114155299,0.00329,68034.0,68031.0,0.015281]
[1722114155300,0.0015542,68033.0,68031.0,0.015281]
[1722114155500,0.1395,68032.0,68009.0,0.1]
[1722114155710,0.0015542,68031.0,68008.0,0.23552979]
[1722114155944,0.0015542,68031.0,68026.0,0.1176]
[1722114156152,0.00329,68034.0,68030.0,0.0604]
[1722114156350,0.00329,68034.0,68033.0,0.978226]
[1722114156552,0.00329,68034.0,68033.0,1.783763]
[1722114157019,1e-06,68034.0,68033.0,1.806763]
[1722114157221,1e-06,68034.0,68033.0,1.836283]
[1722114157390,0.00829,68045.0,68037.0,1.448513]
[1722114157589,0.00829,68045.0,68037.0,1.571513]
[1722114158003,0.00829,68045.0,68037.0,1.806679]
[1722114158212,0.00829,68045.0,68038.0,1.448491]
[1722114158409,0.002,68069.0,68048.0,0.507792]
[1722114158624,0.0035542,68069.0,68048.0,1.336176]
[1722114158837,0.0035542,68069.0,68048.0,1.571304]
[1722114159009,0.002,68069.0,68048.0,1.571304]
[1722114160039,0.002,68069.0,68048.0,1.336176]
[1722114160414,0.002,68069.0,68048.0,1.571304]
[1722114160617,0.002,68069.0,68048.0,1.336176]
[1722114160822,0.0775,68052.0,68048.0,0.352692]
[1722114161039,0.07512979,68056.0,68048.0,0.352692]
[1722114161256,0.0015542,68055.0,68048.0,0.352692]
[1722114161472,0.0015542,68055.0,68048.0,0.58782]
[1722114161675,0.0015542,68055.0,68048.0,0.117564]
[1722114161883,0.0015542,68055.0,68031.0,0.00698003]
[1722114161884,0.07229,68049.0,68031.0,0.00698003]
[1722114162129,0.07512979,68045.0,68025.0,0.01528]
[1722114162354,0.0015542,68048.0,68043.0,0.117572]
[1722114162558,0.0015542,68048.0,68047.0,0.117565]
[1722114162821,0.0015542,68048.0,68047.0,0.587827]
[1722114163375,0.07229,68049.0,68025.0,0.02245407]
[1722114163376,0.01029,68049.0,68048.0,0.352692]
[1722114163836,0.01029,68049.0,68048.0,0.58782]
[1722114164057,0.01029,68049.0,68048.0,0.61082]
[1722114164419,0.01029,68049.0,68048.0,0.58782]
[1722114164720,0.01029,68049.0,68048.0,0.352692]
[1722114164917,0.01029,68049.0,68048.0,0.845948]
[1722114165275,0.01029,68049.0,68048.0,1.001048]
[1722114165451,0.01029,68049.0,68048.0,1.236176]
[1722114165656,0.01029,68049.0,68048.0,1.336176]
[1722114166314,0.01029,68049.0,68048.0,1.101048]
[1722114166508,0.01029,68049.0,68048.0,1.336176]
[1722114166714,0.01029,68049.0,68048.0,1.101048]
[1722114167109,0.01029,68049.0,68048.0,1.336176]
[1722114167437,0.01029,68049.0,68048.0,1.101048]
[1722114167629,0.01029,68049.0,68048.0,1.336176]
[1722114168558,0.01029,68049.0,68048.0,1.3434115]
[1722114168783,0.01029,68049.0,68048.0,1.5785395]
[1722114169213,1e-06,68049.0,68048.0,1.80769907]
[1722114169421,0.002,68059.0,68058.0,1.293011]
[1722114169622,0.002,68059.0,68058.0,1.471111]
[1722114169884,0.002,68059.0,68058.0,1.336018]
[1722114171516,0.002,68059.0,68058.0,1.34321082]
[1722114173022,0.002,68059.0,68058.0,1.24321082]
[1722114173799,0.002,68059.0,68058.0,1.34321082]
[1722114174921,0.002,68059.0,68058.0,1.00811782]
[1722114175152,0.002,68059.0,68058.0,0.98511782]
[1722114175713,0.002,68059.0,68058.0,1.34321082]
[1722114177406,0.002,68059.0,68058.0,1.57830382]
[1722114177827,0.002,68059.0,68058.0,1.57780382]
[1722114178031,0.002,68059.0,68058.0,1.81289682]
[1722114178655,0.002,68059.0,68058.0,1.93502048]
[1722114179104,0.002,68069.0,68068.0,1.447924]
[1722114179279,0.002,68069.0,68068.0,1.570924]
[1722114179439,0.002,68069.0,68068.0,1.335865]
[1722114180465,0.002,68069.0,68068.0,1.100806]
[1722114180878,0.0053,68070.0,68068.0,0.117528]
[1722114181081,0.0015542,68069.0,68068.0,0.117529]
[1722114181282,0.0015542,68069.0,68068.0,0.587647]
[1722114181480,0.0015542,68069.0,68068.0,1.057765]
[1722114181915,0.0053,68070.0,68069.0,0.587637]
[1722114182139,0.0053,68070.0,68069.0,0.977792]
[1722114182558,0.0053,68070.0,68069.0,0.845692]
[1722114182750,0.0053,68070.0,68069.0,0.922692]
[1722114182958,0.002,68079.0,68078.0,1.057608]
[1722114183279,1e-06,68079.0,68078.0,1.805756]
[1722114183567,1e-06,68079.0,68078.0,2.07811211]
[1722114183719,0.00829,68087.0,68086.0,1.447578]
[1722114183953,0.00829,68087.0,68086.0,1.805574]
[1722114184543,0.00829,68087.0,68086.0,1.570578]
[1722114185544,0.0152806,68106.0,68099.0,0.0648]
[1722114185744,0.01542663,68132.0,68108.0,0.1551]
[1722114185745,9e-05,68132.0,68108.0,0.1551]
[1722114185952,9e-05,68132.0,68117.0,1.2121]
[1722114186152,9e-05,68132.0,68117.0,1.469989]
[1722114186514,9e-05,68132.0,68117.0,1.2351]
[1722114186925,9e-05,68132.0,68117.0,1.569989]
[1722114187134,9e-05,68132.0,68117.0,1.571989]
[1722114187331,9e-05,68132.0,68127.0,1.211947]
[1722114187532,9e-05,68132.0,68127.0,1.236947]
[1722114187935,9e-05,68132.0,68127.0,1.234947]
[1722114188147,9e-05,68132.0,68127.0,1.334947]
[1722114188478,9e-05,68132.0,68127.0,1.336947]
[1722114188683,9e-05,68132.0,68127.0,1.571802]
[1722114188887,9e-05,68132.0,68127.0,1.336947]
[1722114189086,9e-05,68132.0,68127.0,1.364467]
[1722114189305,9e-05,68132.0,68128.0,0.821982]
[1722114189502,0.01027,68139.0,68138.0,0.002]
[1722114189703,0.01027,68139.0,68138.0,0.976959]
[1722114189918,0.01027,68139.0,68138.0,1.571593]
[1722114190122,0.01027,68139.0,68138.0,1.569593]
[1722114190364,0.0612,68160.0,68148.0,0.97684]
[1722114190569,0.0612,68160.0,68148.0,0.586957]
[1722114190570,0.07712979,68159.0,68148.0,0.586957]
[1722114190974,0.07712979,68159.0,68148.0,0.117191]
[1722114191175,0.07712979,68159.0,68148.0,0.117391]
[1722114191380,0.07712979,68159.0,68148.0,0.352174]
[1722114191381,0.0015542,68158.0,68148.0,0.352174]
[1722114191582,0.0015542,68158.0,68148.0,0.586957]
[1722114191790,0.002,68159.0,68148.0,0.742057]
[1722114192000,0.002,68159.0,68148.0,1.211623]
[1722114192414,0.002,68159.0,68148.0,1.234623]
[1722114192623,0.002,68159.0,68148.0,1.079523]
[1722114192829,0.002,68159.0,68148.0,0.82174]
[1722114193035,0.002,68159.0,68148.0,0.586957]
[1722114193249,0.002,68159.0,68148.0,0.88804]
[1722114193450,0.002,68159.0,68148.0,0.99499957]
[1722114193654,0.002,68159.0,68148.0,1.334623]
[1722114193857,1e-06,68149.0,68148.0,1.49203113]
[1722114194090,1e-06,68149.0,68148.0,1.49403113]
[1722114194292,1e-06,68149.0,68148.0,1.49203113]
[1722114194503,1e-06,68149.0,68148.0,1.72681413]
[1722114194652,1e-06,68149.0,68148.0,1.49203113]
[1722114194858,1e-06,68149.0,68148.0,1.10698856]
[1722114195286,1e-06,68149.0,68148.0,0.82888856]
[1722114195460,1e-06,68149.0,68148.0,1.60381413]
[1722114195657,1e-06,68149.0,68148.0,1.31877156]
[1722114196535,1e-06,68149.0,68148.0,1.32077156]
[1722114196837,1e-06,68149.0,68148.0,1.34377156]
[1722114197417,1e-06,68149.0,68148.0,1.34177156]
[1722114197624,1e-06,68149.0,68148.0,1.49203113]
[1722114197829,1e-06,68149.0,68148.0,1.34177156]
[1722114198025,1e-06,68149.0,68148.0,0.40188717]
[1722114198225,1e-06,68149.0,68148.0,0.51442256]
[1722114198426,1e-06,68149.0,68148.0,0.98398856]
[1722114199553,1e-06,68149.0,68148.0,1.08398856]
[1722114199705,1e-06,68149.0,68148.0,1.10698856]
[1722114200399,1e-06,68149.0,68148.0,1.34177156]
[1722114200566,0.002,68159.0,68158.0,0.821618]
[1722114200567,0.00053362,68159.0,68158.0,0.821618]
[1722114201352,0.00053362,68159.0,68158.0,0.8505]
[1722114201753,0.00053362,68159.0,68158.0,1.240348]
[1722114201971,0.00053362,68159.0,68158.0,1.76765557]
[1722114202178,0.0152806,68173.0,68168.0,1.056213]
[1722114202388,0.0152806,68173.0,68172.0,0.35205]
[1722114202612,0.00827,68187.0,68178.0,0.352018]
[1722114202822,0.00827,68187.0,68178.0,1.211155]
[1722114203075,0.00827,68187.0,68178.0,1.234155]
[1722114203319,0.00827,68187.0,68178.0,1.468834]
[1722114203521,0.00827,68187.0,68178.0,1.234155]
[1722114204219,0.00827,68187.0,68178.0,1.61909357]
[1722114204423,0.00827,68187.0,68178.0,1.234155]
[1722114205047,0.00827,68187.0,68178.0,1.24143597]
[1722114205300,0.00527,68187.0,68186.0,0.821282]
[1722114205507,0.00527,68187.0,68186.0,0.58663]
[1722114205935,0.00527,68187.0,68186.0,0.351978]
[1722114206145,0.00527,68187.0,68168.0,0.1]
[1722114206373,0.0654,68185.0,68175.0,0.234688]
[1722114206582,0.0015542,68184.0,68159.0,0.234745]
[1722114206811,0.07512979,68177.0,68167.0,0.00724926]
[1722114207017,0.07512979,68177.0,68169.0,0.117354]
[1722114207018,0.0015542,68176.0,68169.0,0.117354]
[1722114207228,0.0015542,68176.0,68158.0,0.005882]
[1722114207424,0.0015542,68176.0,68169.0,0.234707]
[1722114207599,0.839903,68179.0,68168.0,0.117356]
[1722114207600,0.0811,68175.0,68168.0,0.117356]
[1722114207824,0.07512979,68171.0,68158.0,0.005882]
[1722114208022,0.07512979,68163.0,68158.0,0.005882]
[1722114208269,0.07512979,68163.0,68151.0,0.117385]
[1722114208426,0.0015542,68162.0,68144.0,0.00718378]
[1722114208583,0.0015542,68162.0,68079.0,0.17569267]
[1722114208584,0.07512979,68156.0,68120.0,0.16514979]
[1722114208787,0.07512979,68149.0,68142.0,0.1174]
[1722114208992,0.07512979,68149.0,68138.0,0.117408]
[1722114208993,0.0775,68148.0,68138.0,0.117408]
[1722114209258,0.07668399,68147.0,68143.0,0.058826]
[1722114209471,0.07668399,68147.0,68127.0,0.234852]
[1722114209472,0.117398,68144.0,68127.0,0.234852]
[1722114209673,0.07512979,68140.0,68120.0,0.00744135]
[1722114209886,0.07512979,68140.0,68133.0,0.058843]
[1722114210105,0.0015542,68145.0,68139.0,0.117405]
[1722114210359,0.0015542,68145.0,68144.0,0.352194]
[1722114210547,0.0015542,68145.0,68144.0,0.117398]
[1722114210779,0.0015542,68145.0,68133.0,0.05884]
[1722114210780,0.0015542,68145.0,68137.0,0.234818]
[1722114210997,0.0015542,68145.0,68142.0,0.117401]
[1722114211222,0.0015542,68145.0,68143.0,0.117399]
[1722114211446,0.0015542,68145.0,68139.0,0.117406]
[1722114211683,0.0015542,68145.0,68133.0,0.05884]
[1722114212128,0.0015542,68145.0,68137.0,0.117409]
[1722114212344,0.0015542,68145.0,68133.0,0.05884]
[1722114212345,0.0015542,68145.0,68136.0,0.117412]
[1722114212566,0.0015542,68145.0,68133.0,0.05884]
[1722114212804,0.0015542,68145.0,68138.0,0.234815]
[1722114213070,0.0015542,68145.0,68144.0,0.58699]
[1722114213351,0.0658,68146.0,68145.0,0.352189]
[1722114213576,0.0658,68146.0,68145.0,0.821775]
[1722114213803,0.0629,68169.0,68154.0,0.234762]
[1722114214040,0.0629,68169.0,68145.0,0.2571]
[1722114214041,0.53177872,68182.0,68178.0,0.352018]
[1722114214273,0.0629,68181.0,68178.0,0.352018]
[1722114214497,0.0629,68181.0,68178.0,0.586697]
[1722114214738,0.0629,68181.0,68178.0,0.352018]
[1722114215187,0.0629,68181.0,68174.0,0.234693]
[1722114215188,0.0629,68181.0,68150.0,0.002]
[1722114215438,0.07595109,68178.0,68159.0,0.45077872]
[1722114215634,0.07595109,68178.0,68144.0,0.0781]
[1722114215635,0.07512979,68171.0,68145.0,0.002]
[1722114215850,0.1439,68169.0,68154.0,0.234761]
[1722114216049,0.1439,68169.0,68145.0,0.023]
[1722114216050,0.0015542,68168.0,68145.0,0.023]
[1722114216249,0.0015542,68168.0,68145.0,0.1781]
[1722114216450,0.0015542,68168.0,68167.0,0.586792]
[1722114216743,0.1439,68169.0,68168.0,0.586785]
[1722114216972,0.1439,68169.0,68168.0,0.821499]
[1722114217267,0.1439,68169.0,68143.0,0.1551]
[1722114217367,0.52590851,68178.0,68143.0,0.45077872]
[1722114217368,0.07512979,68154.0,68143.0,0.45077872]
[1722114217566,0.1439,68160.0,68159.0,0.117372]
[1722114217963,0.1439,68160.0,68159.0,0.586862]
[1722114218191,0.081,68160.0,68159.0,0.586862]
[1722114218845,0.0629,68164.0,68163.0,0.586827]
[1722114219061,0.081,68171.0,68170.0,0.35206]
[1722114219276,0.1439,68171.0,68170.0,0.586767]
[1722114219488,0.1439,68171.0,68159.0,0.234745]
[1722114219489,0.0629,68183.0,68178.0,0.352018]
[1722114219715,0.0629,68183.0,68178.0,0.586697]
[1722114219942,0.0629,68183.0,68178.0,0.821376]
[1722114220856,0.081,68184.0,68178.0,0.821376]
[1722114221537,0.081,68184.0,68168.0,0.27164191]
[1722114221798,0.081,68184.0,68157.0,0.1]
[1722114221799,0.0015542,68178.0,68177.0,0.352024]
[1722114222213,0.0015542,68178.0,68177.0,0.588707]
[1722114222450,0.12869555,68179.0,68178.0,0.428118]
[1722114222684,0.00527,68187.0,68186.0,0.351978]
[1722114222899,0.00527,68187.0,68186.0,1.62011488]
[1722114223123,0.002,68189.0,68188.0,0.976357]
[1722114223371,0.002,68189.0,68188.0,1.311002]
[1722114223583,0.002,68189.0,68188.0,0.976357]
[1722114223796,0.002,68189.0,68188.0,0.62766539]
[1722114224017,0.002,68189.0,68188.0,0.586612]
[1722114224215,0.002,68189.0,68188.0,0.351967]
[1722114224458,0.002,68189.0,68188.0,0.882357]
[1722114224656,0.002,68189.0,68188.0,1.448202]
[1722114224857,1e-06,68189.0,68188.0,1.682847]
[1722114225062,1e-06,68189.0,68188.0,1.83310657]
[1722114225285,1e-06,68189.0,68188.0,1.95499329]
[1722114225570,1e-06,68189.0,68188.0,1.448202]
[1722114225818,1e-06,68189.0,68188.0,1.471202]
[1722114226049,1e-06,68189.0,68188.0,0.976357]
[1722114226273,0.002,68199.0,68198.0,0.741625]
[1722114226490,0.002,68199.0,68198.0,1.210845]
[1722114226704,0.002,68199.0,68198.0,1.445455]
[1722114227162,0.002,68199.0,68198.0,1.210845]
[1722114227398,0.002,68199.0,68198.0,1.233845]
[1722114227630,0.00827,68208.0,68207.0,1.21071]
[1722114228978,0.00827,68208.0,68207.0,1.21898]
[1722114229622,0.00827,68208.0,68207.0,1.24198]
[1722114230492,0.00017701,68225.0,68207.0,1.63395401]
[1722114230692,0.002,68239.0,68207.0,1.63395401]
[1722114230693,0.002,68239.0,68238.0,0.117236]
[1722114230923,0.002,68239.0,68238.0,0.975755]
[1722114231128,0.002,68239.0,68238.0,1.298172]
[1722114231329,0.002,68239.0,68238.0,1.143072]
[1722114231531,0.002,68239.0,68238.0,1.298172]
[1722114231864,0.002,68239.0,68238.0,1.063699]
[1722114232066,0.002,68239.0,68238.0,0.820655]
[1722114232698,0.002,68239.0,68238.0,0.351709]
[1722114232930,0.002,68239.0,68238.0,0.117236]
[1722114232931,0.1421,68239.0,68238.0,0.117236]
[1722114233284,0.0015542,68238.0,68237.0,0.351714]
[1722114233493,0.0015542,68238.0,68237.0,0.58619]
[1722114233702,0.002,68239.0,68238.0,0.351709]
[1722114233912,0.002,68239.0,68238.0,0.820655]
[1722114234595,0.002,68239.0,68238.0,0.85882421]
[1722114235043,0.002,68239.0,68238.0,1.09329721]
[1722114235479,0.002,68239.0,68238.0,1.13189919]
[1722114235708,0.002,68239.0,68238.0,0.89742619]
[1722114236330,0.002,68239.0,68238.0,0.90453301]
[1722114236561,0.002,68239.0,68238.0,1.29410601]
[1722114237040,0.0015,68239.0,68238.0,1.29410601]
[1722114237832,0.0015,68239.0,68238.0,1.31910601]
[1722114238037,0.0015,68239.0,68238.0,1.31710601]
[1722114238233,0.0015,68239.0,68238.0,1.31660601]
[1722114238435,0.0015,68239.0,68238.0,1.51247703]
[1722114238648,0.0015,68239.0,68238.0,1.65107901]
[1722114238853,0.0015,68239.0,68238.0,1.65307901]
[1722114239050,0.0015,68239.0,68238.0,1.55307901]
[1722114239252,0.0015,68239.0,68238.0,1.31660601]
[1722114239645,0.0015,68239.0,68238.0,1.25500403]
[1722114240197,0.0015,68239.0,68238.0,0.62385121]
[1722114240396,0.1497542,68239.0,68219.0,0.002]
[1722114240616,0.1497542,68239.0,68220.0,0.07512979]
[1722114240812,0.1497542,68239.0,68214.0,0.002]
[1722114241032,0.1497542,68239.0,68215.0,0.23455]
[1722114241237,0.1497542,68239.0,68230.0,0.11725]
[1722114241558,0.2669892,68239.0,68218.0,0.23454]
[1722114241762,0.07512979,68231.0,68213.0,0.0074375]
[1722114241964,0.07512979,68224.0,68207.0,0.45904872]
[1722114242280,0.07512979,68231.0,68210.0,0.117283]
[1722114242281,0.0015542,68220.0,68210.0,0.117283]
[1722114242638,0.0015542,68220.0,68214.0,0.117276]
[1722114242841,0.0015542,68220.0,68207.0,0.00827]
[1722114243025,0.1188232,68220.0,68207.0,0.00827]
[1722114243227,0.0015542,68220.0,68207.0,0.00827]
[1722114243382,0.0653,68218.0,68207.0,0.00827]
[1722114243571,0.0015542,68217.0,68186.0,0.07512979]
[1722114243776,0.0015542,68217.0,68203.0,0.058781]
[1722114243777,0.1467,68214.0,68203.0,0.058781]
[1722114243978,0.1467,68214.0,68182.0,0.52590851]
[1722114244180,0.07512979,68208.0,68182.0,0.45077872]
[1722114244381,0.1467,68189.0,68187.0,0.058788]
[1722114244585,0.1467,68189.0,68188.0,0.351967]
[1722114244856,0.1467,68189.0,68188.0,0.117322]
[1722114245062,0.1467,68189.0,68187.0,0.058788]
[1722114245227,0.1467,68189.0,68156.0,0.0294]
[1722114245228,0.0015542,68188.0,68175.0,0.00719143]
[1722114245473,0.0015542,68188.0,68182.0,0.058801]
[1722114245474,0.07668399,68188.0,68182.0,0.058801]
[1722114245680,0.1467,68185.0,68159.0,0.45077872]
[1722114245880,0.1467,68180.0,68164.0,0.05881]
[1722114246207,0.1467,68180.0,68151.0,0.002]
[1722114246409,0.1467,68180.0,68157.0,0.45077872]
[1722114246609,0.1467,68180.0,68152.0,0.389868]
[1722114246610,0.1467,68180.0,68161.0,0.058811]
[1722114246839,0.07512979,68174.0,68151.0,0.00926343]
[1722114247243,0.0653,68174.0,68158.0,0.234748]
[1722114247442,0.0653,68171.0,68151.0,0.002]
[1722114247631,0.07512979,68166.0,68151.0,0.002]
[1722114247845,0.07512979,68166.0,68151.0,0.060823]
[1722114247846,0.0814,68165.0,68151.0,0.060823]
[1722114248043,0.0653,68164.0,68151.0,0.002]
[1722114248248,0.08748298,68164.0,68151.0,0.002]
[1722114248593,0.0653,68164.0,68151.0,0.002]
[1722114249064,0.0653,68164.0,68152.0,0.117384]
[1722114249284,0.0653,68164.0,68151.0,0.002]
[1722114249489,0.0653,68164.0,68157.0,0.117375]
[1722114249696,0.0653,68164.0,68163.0,0.117365]
[1722114249900,0.0653,68164.0,68151.0,0.23677]
[1722114250047,0.07512979,68156.0,68151.0,0.002]
[1722114250252,0.15692979,68163.0,68151.0,0.002]
[1722114250453,0.15692979,68163.0,68151.0,0.119385]
[1722114250655,0.15692979,68163.0,68151.0,0.002]
[1722114250823,0.15692979,68163.0,68151.0,0.119385]
[1722114251055,0.15692979,68163.0,68151.0,0.002]
[1722114251272,0.07512979,68159.0,68154.0,0.118304]
[1722114251488,0.07512979,68159.0,68154.0,0.000924]
[1722114251489,0.1429,68158.0,68154.0,0.000924]
[1722114251687,0.352138,68155.0,68154.0,0.000924]
[1722114251888,0.260279,68155.0,68154.0,0.000924]
[1722114252087,0.0818,68141.0,68131.0,0.002]
[1722114252288,0.0611,68140.0,68131.0,0.007885]
[1722114252790,0.0611,68140.0,68139.0,0.117407]
[1722114252958,0.0611,68140.0,68133.0,0.234833]
[1722114253159,0.0611,68140.0,68131.0,0.002]
[1722114253160,0.0818,68141.0,68139.0,0.117407]
[1722114253379,0.15,68153.0,68142.0,0.117401]
[1722114253380,0.0611,68143.0,68142.0,0.117401]
[1722114253595,0.0611,68143.0,68142.0,0.587007]
[1722114253999,0.0015542,68142.0,68131.0,0.002]
[1722114254216,0.07668399,68142.0,68131.0,0.002]
[1722114254421,0.0015542,68151.0,68142.0,0.0654]
[1722114254619,0.0015542,68151.0,68150.0,1.211592]
[1722114254916,2e-07,68151.0,68150.0,1.692168]
[1722114255143,2e-07,68151.0,68150.0,1.926944]
[1722114255347,2e-07,68151.0,68150.0,2.07920357]
[1722114255550,0.45077872,68195.0,68194.0,0.58656]
[1722114255859,0.0659,68196.0,68195.0,0.11731]
[1722114256083,0.0659,68196.0,68195.0,0.351931]
[1722114256281,0.0805,68197.0,68196.0,0.351925]
[1722114256480,0.0805,68197.0,68196.0,0.821159]
[1722114256728,0.08032352,68197.0,68196.0,0.821159]
[1722114256927,0.0659,68218.0,68196.0,0.234617]
[1722114257129,0.0659,68218.0,68197.0,0.0015542]
[1722114257327,0.0659,68218.0,68196.0,0.234617]
[1722114257771,0.0659,68218.0,68183.0,0.45077872]
[1722114257772,0.0659,68218.0,68217.0,0.351817]